bitfinex-derivatives/quotes_BTCF0:USTF0_20210706
["timestamp","ask_amount","ask_price","bid_price","bid_amount"]
[1625577801348,2.20478148,34305.0,34304.0,0.24057544]
[1625577801651,1.04456029,34305.0,34304.0,0.24057544]
[1625577802051,1.04456029,34305.0,34304.0,0.54817544]
[1625577802753,0.04982635,34305.0,34304.0,0.54817544]
[1625577804959,1.04264305,34305.0,34304.0,0.54817544]
[1625577805207,1.04264305,34305.0,34304.0,0.24057544]
[1625577807565,1.09964305,34305.0,34304.0,0.24057544]
[1625577807814,1.41925305,34305.0,34304.0,0.24057544]
[1625577808070,2.57858622,34305.0,34304.0,0.24057544]
[1625577809768,1.09964305,34305.0,34304.0,0.24057544]
[1625577810175,1.16855618,34305.0,34304.0,0.24057544]
[1625577810275,2.32881859,34305.0,34304.0,0.24057544]
[1625577811178,2.27181859,34305.0,34304.0,0.24057544]
[1625577811477,1.11155618,34305.0,34304.0,0.24057544]
[1625577812279,1.16855618,34305.0,34304.0,0.24057544]
[1625577812429,1.19985618,34305.0,34304.0,0.24057544]
[1625577812631,1.11155618,34305.0,34304.0,0.24057544]
[1625577813633,1.16855618,34305.0,34304.0,0.24057544]
[1625577814135,2.54369974,34305.0,34304.0,0.24057544]
[1625577818540,3.86960042,34305.0,34304.0,0.24057544]
[1625577820298,2.54369974,34305.0,34304.0,0.24057544]
[1625577820497,3.87056598,34305.0,34304.0,0.24057544]
[1625577820796,5.36173541,34305.0,34304.0,0.24057544]
[1625577821349,5.39173541,34305.0,34304.0,0.24057544]
[1625577821446,5.36173541,34305.0,34304.0,0.24057544]
[1625577822398,5.60231085,34305.0,34304.0,0.24057544]
[1625577828310,7.26098746,34305.0,34304.0,0.24057544]
[1625577829864,7.92475772,34305.0,34304.0,0.24057544]
[1625577830165,6.26608111,34305.0,34304.0,0.24057544]
[1625577833820,6.05077111,34305.0,34304.0,0.48342544]
[1625577834323,5.98185798,34305.0,34304.0,0.48342544]
[1625577835078,5.92485798,34305.0,34304.0,0.48342544]
[1625577836378,5.99377116,34305.0,34304.0,0.24057544]
[1625577836479,6.05077116,34305.0,34304.0,0.24057544]
[1625577841488,7.71515228,34305.0,34304.0,0.24057544]
[1625577841737,6.05077116,34305.0,34304.0,0.24057544]
[1625577842188,5.99377116,34305.0,34304.0,0.24057544]
[1625577842787,6.05077116,34305.0,34304.0,0.24057544]
[1625577842988,7.71544999,34305.0,34304.0,0.24057544]
[1625577843188,6.05077116,34305.0,34304.0,0.24057544]
[1625577843642,7.71547954,34305.0,34304.0,0.24057544]
[1625577845147,7.74547954,34305.0,34304.0,0.24057544]
[1625577845345,7.71547954,34305.0,34304.0,0.24057544]
[1625577845797,7.65847954,34305.0,34304.0,0.24057544]
[1625577846103,5.99377116,34305.0,34304.0,0.24057544]
[1625577846650,6.05077116,34305.0,34304.0,0.24057544]
[1625577847852,5.99377116,34305.0,34304.0,0.24057544]
[1625577849909,6.05077116,34305.0,34304.0,0.24057544]
[1625577851210,1.9074844,34305.0,34304.0,0.24057544]
[1625577851812,7.73549878,34305.0,34304.0,0.24057544]
[1625577852692,8.08440878,34305.0,34304.0,0.24057544]
[1625577853015,8.08440878,34305.0,34301.0,0.24057544]
[1625577853368,0.120281,34304.0,34301.0,0.24057544]
[1625577853469,7.32839051,34302.0,34301.0,0.24057544]
[1625577853568,7.38539051,34302.0,34301.0,0.24057544]
[1625577853975,7.38539051,34302.0,34286.0,1.54721811]
[1625577853976,7.38539051,34302.0,34291.0,0.68769075]
[1625577854071,7.50568171,34302.0,34291.0,0.68769075]
[1625577854221,4.16275399,34292.0,34290.0,0.68773562]
[1625577854323,4.48126399,34292.0,34290.0,0.68773562]
[1625577854420,4.3617,34291.0,34290.0,0.68773562]
[1625577854521,8.52398016,34291.0,34289.0,0.68773921]
[1625577854621,8.81592281,34291.0,34290.0,0.24057544]
[1625577854731,8.87292281,34291.0,34290.0,0.24057544]
[1625577855023,10.37032431,34291.0,34286.0,0.68779126]
[1625577855121,10.45822431,34291.0,34286.0,0.68779126]
[1625577855221,4.64803889,34287.0,34285.0,1.978]
[1625577855320,0.057,34286.0,34285.0,1.978]
[1625577855424,2.04852058,34286.0,34285.0,1.978]
[1625577855521,4.70377073,34286.0,34285.0,1.978]
[1625577855722,4.75514559,34286.0,34285.0,1.978]
[1625577856473,4.82409527,34286.0,34285.0,1.978]
[1625577856577,5.30524615,34286.0,34285.0,1.978]
[1625577856773,5.23629647,34286.0,34285.0,1.978]
[1625577858622,5.23629647,34286.0,34285.0,0.9922]
[1625577859424,5.20182477,34286.0,34285.0,0.9922]
[1625577859626,3.7082673,34286.0,34285.0,0.9922]
[1625577859873,5.69201909,34286.0,34285.0,0.9922]
[1625577863130,4.20428789,34286.0,34285.0,0.9922]
[1625577863583,4.20428789,34286.0,34285.0,1.27459]
[1625577863690,4.14728789,34286.0,34285.0,1.27459]
[1625577863785,2.81966281,34286.0,34285.0,1.27459]
[1625577864085,1.65797013,34286.0,34285.0,5.40959]
[1625577864638,1.65797013,34286.0,34285.0,5.65016544]
[1625577864937,1.65797013,34286.0,34285.0,1.51516544]
[1625577865989,1.65797013,34286.0,34285.0,1.23277544]
[1625577866092,1.98425013,34286.0,34285.0,0.9922]
[1625577866292,4.46085927,34286.0,34285.0,0.9922]
[1625577868244,4.46085927,34286.0,34285.0,0.0001]
[1625577868342,4.46085927,34286.0,34274.0,0.24057544]
[1625577868643,0.48115088,34275.0,34274.0,0.24057544]
[1625577868844,0.78414088,34275.0,34274.0,0.24057544]
[1625577869646,0.78414088,34275.0,34274.0,0.75385404]
[1625577869848,0.48115088,34275.0,34274.0,0.75385404]
[1625577869949,0.48115088,34275.0,34274.0,1.43820255]
[1625577870353,0.48115088,34275.0,34274.0,0.24057544]
[1625577870649,0.24057544,34275.0,34274.0,0.24057544]
[1625577871752,0.24057544,34275.0,34274.0,0.75374134]
[1625577871952,0.24057544,34275.0,34274.0,1.43794885]
[1625577872755,0.24057544,34275.0,34274.0,0.75374134]
[1625577872907,0.24057544,34275.0,34274.0,0.24057544]
[1625577874357,0.24057544,34275.0,34274.0,0.75368467]
[1625577875309,0.24057544,34275.0,34274.0,1.01653467]
[1625577875712,0.24057544,34275.0,34274.0,1.70063205]
[1625577876212,0.24057544,34275.0,34274.0,1.01653467]
[1625577876462,0.24057544,34275.0,34274.0,1.7006498]
[1625577876761,0.24057544,34275.0,34274.0,0.75368467]
[1625577877062,0.24057544,34275.0,34274.0,0.24057544]
[1625577877364,0.24057544,34275.0,34274.0,0.75364236]
[1625577878865,0.25747652,34275.0,34274.0,0.75364236]
[1625577878965,0.25747652,34275.0,34274.0,1.03791236]
[1625577879317,0.25747652,34275.0,34274.0,1.72199178]
[1625577879719,0.25747652,34275.0,34274.0,1.03791236]
[1625577880019,0.25747652,34275.0,34274.0,0.24057544]
[1625577880673,0.25747652,34275.0,34274.0,0.51549544]
[1625577880772,0.25747652,34275.0,34274.0,1.02860538]
[1625577880972,0.25747652,34275.0,34274.0,1.71275053]
[1625577882274,0.01690108,34275.0,34274.0,1.71275053]
[1625577882524,0.01690029,34281.0,34274.0,1.71275053]
[1625577882726,0.01690029,34281.0,34280.0,0.24057544]
[1625577882825,0.2919449,34282.0,34280.0,0.24057544]
[1625577882928,1.44757193,34282.0,34280.0,0.24057544]
[1625577883079,0.05136938,34281.0,34280.0,0.24057544]
[1625577883930,0.6036578,34281.0,34280.0,0.24057544]
[1625577884334,0.5466578,34281.0,34280.0,0.24057544]
[1625577884585,0.6036578,34281.0,34280.0,0.24057544]
[1625577884884,1.2639453,34281.0,34280.0,0.24057544]
[1625577887041,2.25400909,34281.0,34280.0,0.24057544]
[1625577887292,3.40887294,34281.0,34280.0,0.24057544]
[1625577887845,3.40887294,34281.0,34274.0,0.24057544]
[1625577888245,0.49499654,34277.0,34274.0,0.24057544]
[1625577888349,0.057,34276.0,34274.0,0.24057544]
[1625577888497,0.09147309,34276.0,34274.0,0.24057544]
[1625577888597,0.10838364,34276.0,34274.0,0.24057544]
[1625577888747,0.48115088,34275.0,34274.0,0.24057544]
[1625577888848,0.58953454,34275.0,34274.0,0.24057544]
[1625577889502,0.58953454,34275.0,34271.0,0.24057544]
[1625577889807,0.49198561,34274.0,34268.0,0.9175]
[1625577889906,0.057,34273.0,34268.0,0.9175]
[1625577890105,0.58229406,34273.0,34268.0,0.9175]
[1625577890204,0.59920583,34273.0,34268.0,0.9175]
[1625577890305,0.43463792,34273.0,34268.0,0.9175]
[1625577890404,0.0513887,34272.0,34268.0,0.9175]
[1625577890755,0.48115088,34269.0,34268.0,0.9175]
[1625577890858,0.75008088,34269.0,34268.0,0.9175]
[1625577891206,0.76699289,34269.0,34268.0,0.9175]
[1625577893461,0.49806289,34269.0,34268.0,0.9175]
[1625577893863,0.49806289,34269.0,34268.0,2.11436446]
[1625577894765,0.25748745,34269.0,34268.0,2.11436446]
[1625577894964,0.25748745,34269.0,34268.0,3.14018699]
[1625577896517,0.25748745,34269.0,34268.0,4.33737952]
[1625577897274,0.25748745,34269.0,34268.0,3.14018699]
[1625577898425,0.25748745,34269.0,34268.0,2.11436446]
[1625577899123,0.55089745,34269.0,34268.0,2.11436446]
[1625577899623,0.55089745,34269.0,34268.0,3.14129145]
[1625577900578,0.25748745,34269.0,34268.0,3.14129145]
[1625577902134,0.48115088,34275.0,34268.0,3.14129145]
[1625577902243,0.24057544,34275.0,34268.0,3.14129145]
[1625577902337,4.4961,34287.0,34268.0,3.14129145]
[1625577902338,0.32752128,34278.0,34273.0,0.34229154]
[1625577902446,0.32752128,34278.0,34273.0,0.59983154]
[1625577902535,1.14607894,34279.0,34273.0,0.59983154]
[1625577902536,0.01685489,34275.0,34274.0,0.51341988]
[1625577902834,0.01685454,34277.0,34274.0,1.91969939]
[1625577903034,0.01685454,34277.0,34276.0,0.34241349]
[1625577903140,0.05132357,34279.0,34276.0,0.34241349]
[1625577903249,0.05132357,34279.0,34276.0,1.19844172]
[1625577903347,0.01685399,34277.0,34276.0,1.19844172]
[1625577903435,0.1014016,34281.0,34276.0,1.19844172]
[1625577903545,0.65582293,34282.0,34276.0,1.19844172]
[1625577903547,0.65582293,34282.0,34276.0,2.22567016]
[1625577903548,0.82007956,34282.0,34276.0,2.22567016]
[1625577903638,0.82007956,34282.0,34277.0,0.5]
[1625577903736,0.6564639,34287.0,34281.0,0.68479306]
[1625577903835,0.6564639,34287.0,34281.0,1.02358306]
[1625577903934,0.98461381,34288.0,34282.0,0.68475741]
[1625577904035,0.8975653,34289.0,34282.0,0.68475741]
[1625577904135,0.05126202,34286.0,34282.0,0.68475741]
[1625577904238,0.05126202,34286.0,34283.0,0.68473443]
[1625577904438,0.70813612,34288.0,34282.0,0.68475122]
[1625577904737,0.0512622,34285.0,34282.0,0.68475122]
[1625577904837,0.0512622,34285.0,34284.0,0.48115088]
[1625577904939,0.70950184,34287.0,34284.0,0.48115088]
[1625577905241,0.70943535,34286.0,34284.0,0.48115088]
[1625577905440,0.05126245,34286.0,34284.0,0.48115088]
[1625577905540,0.05126226,34285.0,34284.0,0.48115088]
[1625577906097,0.0167979,34285.0,34284.0,0.48115088]
[1625577906295,0.67563594,34285.0,34284.0,0.48115088]
[1625577906493,0.0167979,34285.0,34284.0,0.48115088]
[1625577906945,0.67609709,34285.0,34284.0,0.48115088]
[1625577907447,0.0167979,34285.0,34284.0,0.48115088]
[1625577908348,0.6596541,34287.0,34284.0,0.48115088]
[1625577908349,0.67680668,34286.0,34284.0,0.48115088]
[1625577908651,0.07379062,34286.0,34284.0,0.48115088]
[1625577908851,1.66929323,34285.0,34284.0,0.48115088]
[1625577909098,2.82548698,34285.0,34284.0,0.48115088]
[1625577909198,2.88248698,34285.0,34284.0,0.48115088]
[1625577909599,4.23742757,34285.0,34284.0,0.48115088]
[1625577910849,4.47800301,34285.0,34284.0,0.48115088]
[1625577911152,4.47800301,34285.0,34284.0,0.24057544]
[1625577911254,4.47800301,34285.0,34276.0,0.68592203]
[1625577911452,8.99900301,34285.0,34276.0,0.68592203]
[1625577911552,8.99900301,34285.0,34275.0,1.02888304]
[1625577911553,0.99234887,34277.0,34275.0,0.68596746]
[1625577911803,1.32213397,34277.0,34276.0,0.6865336]
[1625577911903,1.26513397,34277.0,34276.0,0.6865336]
[1625577912105,0.93586385,34277.0,34276.0,1.71630316]
[1625577912306,0.29263345,34277.0,34276.0,1.71630316]
[1625577912904,0.29263345,34277.0,34276.0,1.9568786]
[1625577913004,0.01679345,34277.0,34276.0,1.9568786]
[1625577913105,0.01679345,34277.0,34276.0,3.1591136]
[1625577913505,0.67533579,34277.0,34276.0,3.1591136]
[1625577914960,0.01679345,34277.0,34276.0,3.1591136]
[1625577915461,0.67497372,34277.0,34276.0,3.1591136]
[1625577915662,0.67497372,34277.0,34276.0,1.9568786]
[1625577915663,1.66178795,34277.0,34276.0,1.9568786]
[1625577916313,1.66178795,34277.0,34276.0,0.92710904]
[1625577916914,2.04727795,34277.0,34276.0,0.92710904]
[1625577917015,3.19771626,34277.0,34276.0,0.24057544]
[1625577917117,3.14071626,34277.0,34276.0,0.24057544]
[1625577917215,3.19771626,34277.0,34276.0,0.24057544]
[1625577917565,3.19771626,34277.0,34276.0,0.32646885]
[1625577917817,3.19771626,34277.0,34276.0,0.24057544]
[1625577917968,3.14071626,34277.0,34276.0,0.24057544]
[1625577918875,3.12392281,34277.0,34276.0,0.24057544]
[1625577919072,3.14077227,34277.0,34276.0,0.24057544]
[1625577919174,3.19777227,34277.0,34276.0,0.24057544]
[1625577920475,3.19777227,34277.0,34276.0,0.41235744]
[1625577920676,3.23224138,34277.0,34276.0,0.41235744]
[1625577921928,3.23224138,34277.0,34276.0,0.24057544]
[1625577922129,3.23224138,34277.0,34276.0,0.41235336]
[1625577922378,3.23224138,34277.0,34276.0,0.24057544]
[1625577922579,3.19777227,34277.0,34276.0,0.92768243]
[1625577922878,3.23224108,34277.0,34276.0,0.92768243]
[1625577923079,3.17524108,34277.0,34276.0,0.24057544]
[1625577923482,3.14077227,34277.0,34276.0,0.24057544]
[1625577923582,1.99033396,34277.0,34276.0,0.92764112]
[1625577924337,1.99033396,34277.0,34276.0,1.95826505]
[1625577924734,2.04733396,34277.0,34276.0,0.92764112]
[1625577925036,3.19725181,34277.0,34276.0,0.24057544]
[1625577925134,3.23171971,34277.0,34276.0,0.24057544]
[1625577926792,2.57353944,34277.0,34276.0,0.24057544]
[1625577926995,3.21366768,34277.0,34276.0,0.24057544]
[1625577927245,3.23047308,34277.0,34276.0,0.24057544]
[1625577927444,3.23047308,34277.0,34276.0,0.4123751]
[1625577928149,3.23047308,34277.0,34276.0,0.24057544]
[1625577929353,3.23047308,34277.0,34276.0,0.41237186]
[1625577929804,3.23047308,34277.0,34276.0,0.24057544]
[1625577931507,3.23047308,34277.0,34276.0,0.41236988]
[1625577932009,3.23047308,34277.0,34276.0,0.49827146]
[1625577932710,3.23047308,34277.0,34276.0,0.41236988]
[1625577932910,3.23047308,34277.0,34276.0,0.49826578]
[1625577937427,4.53661765,34277.0,34276.0,0.49826578]
[1625577937525,4.53661765,34277.0,34276.0,0.32647134]
[1625577937727,4.53661765,34277.0,34276.0,0.49826686]
[1625577938381,4.53661765,34277.0,34276.0,0.41237096]
[1625577938479,4.53661765,34277.0,34276.0,0.24057544]
[1625577938682,4.53661765,34277.0,34276.0,0.32647502]
[1625577938881,4.53661765,34277.0,34276.0,0.24057544]
[1625577939884,4.53661765,34277.0,34276.0,0.32647414]
[1625577940086,4.53661765,34277.0,34276.0,0.24057544]
[1625577940536,4.53661765,34277.0,34275.0,0.25769807]
[1625577940636,6.00397104,34277.0,34272.0,0.08590512]
[1625577940936,4.07325948,34273.0,34271.0,0.24057544]
[1625577941036,0.057,34272.0,34271.0,0.24057544]
[1625577941235,4.18107058,34272.0,34271.0,0.24057544]
[1625577941335,4.66222146,34272.0,34271.0,0.24057544]
[1625577943841,3.35897439,34272.0,34271.0,0.24057544]
[1625577946700,4.66129647,34272.0,34271.0,0.24057544]
[1625577948605,4.60429647,34272.0,34271.0,0.24057544]
[1625577948705,4.66129647,34272.0,34271.0,0.24057544]
[1625577948805,3.35897439,34272.0,34271.0,0.24057544]
[1625577949256,4.66213946,34272.0,34271.0,0.24057544]
[1625577960786,6.13001927,34272.0,34271.0,0.24057544]
[1625577960984,6.13001927,34272.0,34268.0,0.9175]
[1625577961236,0.05128311,34271.0,34268.0,0.9175]
[1625577961337,4.07741023,34269.0,34268.0,0.9175]
[1625577961437,4.62225567,34269.0,34268.0,0.9175]
[1625577961788,4.67353957,34269.0,34268.0,0.9175]
[1625577962690,4.67353957,34269.0,34262.0,0.25725125]
[1625577962792,1.62952346,34263.0,34262.0,0.17150084]
[1625577962889,1.62952346,34263.0,34259.0,0.25724988]
[1625577962996,0.057,34262.0,34259.0,0.25724988]
[1625577963093,0.057,34259.0,34256.0,0.25725949]
[1625577963192,5.0961,34257.0,34256.0,0.25725949]
[1625577963349,5.0961,34257.0,34254.0,0.92660075]
[1625577963350,5.0961,34257.0,34255.0,0.25712517]
[1625577963352,5.34044165,34257.0,34255.0,0.25712517]
[1625577963447,0.72172632,34256.0,34255.0,0.25712517]
[1625577963644,0.72172632,34256.0,34254.0,0.24057544]
[1625577963645,1.42901832,34256.0,34254.0,0.24057544]
[1625577963744,1.44582588,34256.0,34254.0,0.24057544]
[1625577963845,0.70633797,34255.0,34254.0,0.24057544]
[1625577963944,0.96131797,34255.0,34254.0,0.24057544]
[1625577964046,0.32878752,34255.0,34254.0,0.24057544]
[1625577965300,0.57246139,34255.0,34254.0,0.24057544]
[1625577965699,0.51546139,34255.0,34254.0,0.24057544]
[1625577965799,0.43418269,34255.0,34254.0,0.24057544]
[1625577965998,0.57249077,34255.0,34254.0,0.24057544]
[1625577966199,0.32878752,34255.0,34254.0,0.24057544]
[1625577966498,0.97791778,34255.0,34254.0,0.24057544]
[1625577966999,0.32878752,34255.0,34254.0,0.24057544]
[1625577967300,0.97799832,34255.0,34254.0,0.24057544]
[1625577968305,0.97799832,34255.0,34251.0,0.25704274]
[1625577968507,3.0881143,34255.0,34248.0,0.49764116]
[1625577968705,0.97261272,34251.0,34248.0,0.24057544]
[1625577968804,0.21923718,34249.0,34248.0,0.24057544]
[1625577969106,0.23606701,34249.0,34248.0,0.24057544]
[1625577969207,0.31710724,34249.0,34248.0,0.24057544]
[1625577969361,0.31710724,34249.0,34245.0,0.08561804]
[1625577969459,0.31710724,34249.0,34244.0,0.41181152]
[1625577969460,0.31710724,34249.0,34244.0,0.25685515]
[1625577969462,0.72172632,34246.0,34244.0,0.25685515]
[1625577969578,0.057,34245.0,34244.0,0.08561907]
[1625577969657,0.057,34245.0,34239.0,1.19866704]
[1625577969768,0.057,34245.0,34241.0,0.08563133]
[1625577969769,0.2996553,34245.0,34241.0,0.08563133]
[1625577969957,0.2996553,34245.0,34237.0,1.02757596]
[1625577969958,0.057,34241.0,34234.0,0.25692841]
[1625577970459,1.6129334,34242.0,34232.0,0.68514242]
[1625577970460,0.057,34236.0,34232.0,0.25697151]
[1625577970761,0.057,34236.0,34230.0,0.2569745]
[1625577970959,0.057,34236.0,34234.0,0.25696736]
[1625577971060,0.24206361,34239.0,34234.0,0.25696736]
[1625577971261,0.08069825,34238.0,34234.0,0.08565579]
[1625577971461,0.24057544,34239.0,34237.0,0.24057544]
[1625577971559,0.31516,34238.0,34237.0,0.24057544]
[1625577971762,5.56686,34238.0,34237.0,0.24057544]
[1625577972111,5.62386,34238.0,34237.0,0.24057544]
[1625577972310,5.56686,34238.0,34237.0,0.24057544]
[1625577972410,5.56686,34238.0,34233.0,0.24057544]
[1625577973213,5.62386,34238.0,34233.0,0.24057544]
[1625577973514,0.48115088,34236.0,34233.0,0.24057544]
[1625577974518,0.53815088,34236.0,34233.0,0.24057544]
[1625577976821,0.53815088,34236.0,34229.0,0.24057544]
[1625577977525,0.24057544,34230.0,34226.0,0.24057544]
[1625577977623,0.03,34229.0,34226.0,0.10757544]
[1625577977722,0.087,34229.0,34221.0,0.25569274]
[1625577977925,0.087,34229.0,34220.0,0.24057544]
[1625577978023,0.03,34229.0,34220.0,0.24057544]
[1625577978122,0.57564544,34230.0,34220.0,0.24057544]
[1625577978325,5.175,34222.0,34220.0,0.24057544]
[1625577979528,0.24057544,34221.0,34220.0,0.24057544]
[1625577979625,0.24057544,34221.0,34218.0,0.2553973]
[1625577979825,0.24057544,34221.0,34218.0,0.08513243]
[1625577980076,0.24057544,34221.0,34218.0,0.25538563]
[1625577980375,0.24057544,34221.0,34219.0,0.08512523]
[1625577980575,0.24057544,34221.0,34219.0,0.25537289]
[1625577981325,0.24057544,34221.0,34218.0,0.25517907]
[1625577981741,0.24057544,34223.0,34218.0,0.25517907]
[1625577981742,0.057,34229.0,34218.0,0.25517907]
[1625577981846,0.057,34229.0,34220.0,0.08505314]
[1625577981929,0.24057544,34230.0,34220.0,0.08505314]
[1625577982078,0.24057544,34230.0,34222.0,0.25514607]
[1625577982328,0.24057544,34230.0,34223.0,0.08504746]
[1625577982528,0.24057544,34230.0,34222.0,0.25514582]
[1625577982831,0.24057544,34230.0,34223.0,0.08504812]
[1625577983032,0.24057544,34230.0,34222.0,0.25510962]
[1625577983282,0.24057544,34230.0,34221.0,0.08501535]
[1625577983582,0.24057544,34230.0,34229.0,0.48115088]
[1625577984090,0.24057544,34230.0,34229.0,0.74995088]
[1625577984388,0.24057544,34235.0,34229.0,0.74995088]
[1625577985040,0.24057544,34235.0,34231.0,5.1408]
[1625577985240,0.24057544,34238.0,34231.0,5.1408]
[1625577985337,0.24057544,34241.0,34231.0,5.1408]
[1625577985542,0.24057544,34241.0,34240.0,0.48115088]
[1625577985638,0.24057544,34246.0,34240.0,0.75656088]
[1625577987293,0.24057544,34250.0,34240.0,0.75656088]
[1625577987591,0.24057544,34250.0,34249.0,0.48115088]
[1625577987692,0.24057544,34253.0,34249.0,0.81103088]
[1625577989546,0.24057544,34253.0,34251.0,0.24057544]
[1625577990597,0.01684396,34252.0,34251.0,0.24057544]
[1625577993606,0.2574194,34252.0,34251.0,0.24057544]
[1625577993705,0.3144194,34252.0,34251.0,0.24057544]
[1625577993805,0.3144194,34252.0,34240.0,0.24057544]
[1625577994108,0.08094901,34250.0,34240.0,0.24057544]
[1625577994208,0.13794901,34250.0,34240.0,0.24057544]
[1625577994508,0.29967063,34250.0,34240.0,0.24057544]
[1625577994662,0.01684628,34249.0,34240.0,0.24057544]
[1625577994758,0.30435628,34249.0,34240.0,0.24057544]
[1625577995159,0.01684647,34248.0,34240.0,0.24057544]
[1625577995665,0.24057544,34241.0,34240.0,0.24057544]
[1625577995765,0.52238544,34241.0,34240.0,0.24057544]
[1625577997914,0.53923199,34241.0,34240.0,0.24057544]
[1625577998517,0.25742199,34241.0,34240.0,0.24057544]
[1625577998715,0.24057544,34241.0,34240.0,0.24057544]
[1625577998915,0.25742177,34241.0,34240.0,0.24057544]
[1625578000020,0.24057544,34241.0,34240.0,0.24057544]
[1625578000771,0.2574181,34241.0,34240.0,0.24057544]
[1625578003030,0.24057544,34241.0,34240.0,0.24057544]
[1625578005432,0.08116079,34249.0,34240.0,0.49773544]
[1625578005631,0.24057544,34252.0,34248.0,0.48115088]
[1625578005833,0.24057544,34252.0,34248.0,0.74217088]
[1625578006035,0.01681768,34251.0,34248.0,0.74217088]
[1625578018366,0.09850102,34251.0,34248.0,0.74217088]
[1625578018570,0.01681768,34251.0,34248.0,0.99886878]
[1625578018666,0.01681417,34250.0,34248.0,0.99886878]
[1625578018818,0.01681417,34250.0,34249.0,0.08556533]
[1625578018917,0.01681386,34251.0,34249.0,0.08556533]
[1625578019316,0.01681386,34251.0,34249.0,0.25669788]
[1625578019617,0.01681386,34251.0,34250.0,0.08556398]
[1625578019917,0.01681386,34251.0,34250.0,0.25679412]
[1625578020420,0.01681386,34251.0,34250.0,0.51368992]
[1625578020619,0.01681386,34251.0,34250.0,0.2568494]
[1625578020718,0.24057544,34252.0,34250.0,0.2568494]
[1625578021073,0.24057544,34252.0,34250.0,0.08561647]
[1625578021572,0.24057544,34252.0,34250.0,0.25685102]
[1625578021874,0.24057544,34252.0,34251.0,0.08561586]
[1625578022074,0.24057544,34252.0,34250.0,0.25685157]
[1625578022382,0.24057544,34252.0,34250.0,0.08561702]
[1625578022383,0.25736266,34252.0,34250.0,0.08561702]
[1625578022576,0.01678773,34251.0,34249.0,0.08562195]
[1625578022777,0.01678773,34251.0,34248.0,0.73801719]
[1625578023278,0.01678773,34251.0,34250.0,0.08563552]
[1625578023377,0.01678773,34251.0,34250.0,0.31163552]
[1625578023880,0.01678773,34251.0,34250.0,0.48290216]
[1625578024283,0.01678773,34251.0,34250.0,0.82543372]
[1625578025286,0.01678773,34251.0,34250.0,0.48290216]
[1625578025785,0.01678773,34251.0,34250.0,0.8254402]
[1625578026938,0.01678773,34251.0,34250.0,0.48290216]
[1625578027139,0.01678773,34251.0,34250.0,0.226]
[1625578028094,0.01678773,34251.0,34250.0,0.31163936]
[1625578028342,0.01678773,34251.0,34250.0,0.226]
[1625578028592,0.01678773,34251.0,34250.0,0.08563846]
[1625578028691,0.01678773,34251.0,34250.0,0.38961846]
[1625578029092,0.01678773,34251.0,34250.0,0.8177448]
[1625578029392,0.01678773,34251.0,34250.0,1.50275503]
[1625578029492,0.57212556,34256.0,34250.0,1.50275503]
[1625578029592,0.24532049,34256.0,34250.0,1.50275503]
[1625578029743,0.24532049,34256.0,34255.0,0.48115088]
[1625578029845,0.5722599,34257.0,34255.0,0.48115088]
[1625578030046,0.08184698,34257.0,34255.0,0.48115088]
[1625578030295,0.01673565,34256.0,34255.0,0.48115088]
[1625578030595,1.14428037,34263.0,34257.0,3.5703]
[1625578030697,1.14428037,34263.0,34257.0,3.80941]
[1625578030798,0.9184,34291.0,34257.0,3.80941]
[1625578030799,0.9184,34291.0,34257.0,4.30941]
[1625578030801,0.15439677,34264.0,34257.0,4.30941]
[1625578031125,1.30843009,34266.0,34257.0,4.30941]
[1625578031126,0.057,34271.0,34257.0,4.30941]
[1625578031129,0.01667958,34262.0,34257.0,4.30941]
[1625578031310,0.01667958,34262.0,34257.0,3.80941]
[1625578031401,0.01667924,34263.0,34258.0,0.5]
[1625578031703,0.01667893,34270.0,34258.0,0.5]
[1625578031797,0.01667893,34270.0,34269.0,0.72172632]
[1625578031903,1.31074919,34273.0,34269.0,0.72172632]
[1625578031904,0.05116202,34272.0,34269.0,0.97624632]
[1625578032599,0.05116202,34272.0,34271.0,3.8267]
[1625578032898,0.0511593,34274.0,34271.0,3.8267]
[1625578033098,0.0511593,34274.0,34271.0,4.3267]
[1625578033199,0.01667798,34274.0,34271.0,4.3267]
[1625578033498,0.01667705,34275.0,34271.0,4.3267]
[1625578033753,0.05115509,34278.0,34274.0,0.48115088]
[1625578033951,1.31099922,34279.0,34274.0,0.48115088]
[1625578034251,0.05115488,34278.0,34274.0,0.48115088]
[1625578034552,0.0166768,34278.0,34274.0,0.48115088]
[1625578034753,1.47550302,34284.0,34275.0,0.5]
[1625578034954,1.71669381,34286.0,34275.0,0.5]
[1625578035052,0.0166222,34283.0,34275.0,0.5]
[1625578035353,0.01662162,34285.0,34274.0,0.48115088]
[1625578035654,0.24057544,34286.0,34274.0,0.48115088]
[1625578035655,0.01662095,34282.0,34274.0,0.48115088]
[1625578035755,0.01662095,34282.0,34281.0,0.48115088]
[1625578035852,0.24057544,34286.0,34281.0,0.48115088]
[1625578035853,0.01662055,34284.0,34281.0,0.48115088]
[1625578035953,0.01662055,34284.0,34281.0,0.75452088]
[1625578036153,0.24057544,34286.0,34281.0,0.75452088]
[1625578036154,0.01662124,34285.0,34281.0,0.75452088]
[1625578036455,0.07362124,34285.0,34281.0,0.75452088]
[1625578036957,0.01662117,34284.0,34281.0,0.75452088]
[1625578037807,0.01662117,34284.0,34281.0,0.99509632]
[1625578039009,0.01662117,34284.0,34281.0,0.72172632]
[1625578039765,0.24057544,34282.0,34281.0,0.72172632]
[1625578039967,0.24057544,34282.0,34281.0,0.79392632]
[1625578040268,0.29757544,34282.0,34281.0,0.79392632]
[1625578040367,0.3142365,34282.0,34281.0,0.79392632]
[1625578043624,0.4021365,34282.0,34281.0,0.79392632]
[1625578043721,0.3142365,34282.0,34281.0,0.79392632]
[1625578045024,0.29757544,34282.0,34281.0,0.79392632]
[1625578049176,0.24057544,34282.0,34281.0,0.79392632]
[1625578052436,0.29757544,34282.0,34281.0,0.79392632]
[1625578053390,1.30022545,34286.0,34281.0,0.79392632]
[1625578053490,3.04679884,34317.0,34281.0,0.79392632]
[1625578053491,1.48019633,34292.0,34281.0,1.29392632]
[1625578053594,1.48019633,34292.0,34282.0,0.057]
[1625578053895,1.48019633,34292.0,34291.0,0.72172632]
[1625578053990,1.48019633,34292.0,34291.0,5.27351632]
[1625578054091,1.4848941,34303.0,34291.0,5.33051632]
[1625578054291,0.05110813,34302.0,34291.0,5.33051632]
[1625578054690,0.05110813,34302.0,34291.0,5.83051632]
[1625578055091,0.05110403,34303.0,34291.0,0.99721632]
[1625578055891,0.0511053,34304.0,34302.0,0.61833448]
[1625578055989,0.0511053,34304.0,34302.0,0.88894448]
[1625578056191,0.05110573,34305.0,34302.0,0.88894448]
[1625578057045,1.53603852,34306.0,34302.0,0.88894448]
[1625578057245,6.9315,34312.0,34302.0,0.88894448]
[1625578057246,0.05110491,34304.0,34302.0,0.88894448]
[1625578057851,0.05110552,34305.0,34302.0,0.88894448]
[1625578057947,0.05110552,34305.0,34302.0,1.12951992]
[1625578058049,1.53386583,34305.0,34302.0,1.12951992]